bitfinex-derivatives/quotes_SOLF0:USTF0_20260116
["timestamp","ask_amount","ask_price","bid_price","bid_amount"]
[1768549773765,10.13228665,142.83,142.78,17.79987627]
[1768549773970,1.59888847,142.84,142.78,17.79987627]
[1768549774167,10.13228665,142.83,142.78,17.79987627]
[1768549774465,1.59888847,142.84,142.78,17.79987627]
[1768549774669,4.95299679,142.83,142.78,17.79987627]
[1768549774870,1.59888847,142.84,142.78,17.79987627]
[1768549775066,4.95283265,142.83,142.78,17.79987627]
[1768549775367,1.59888847,142.84,142.78,17.79987627]
[1768549775668,4.95257902,142.83,142.78,17.79987627]
[1768549775866,1.59888847,142.84,142.78,17.79987627]
[1768549776067,4.95258917,142.83,142.78,17.79987627]
[1768549776371,1.59888847,142.84,142.78,17.79987627]
[1768549776563,4.95251255,142.83,142.78,17.79987627]
[1768549776762,1.59888847,142.84,142.78,17.79987627]
[1768549776966,4.95251255,142.83,142.78,24.10537627]
[1768549777162,1.59888847,142.84,142.79,17.5783048]
[1768549777360,4.95174799,142.83,142.79,17.5783048]
[1768549777558,1.59888847,142.84,142.79,17.5783048]
[1768549777762,4.95223483,142.83,142.79,17.5783048]
[1768549777971,1.59888847,142.84,142.79,17.5783048]
[1768549778167,4.95224499,142.83,142.79,17.5783048]
[1768549778364,1.59888847,142.84,142.79,17.5783048]
[1768549778564,4.95177429,142.83,142.79,17.5783048]
[1768549778765,1.59888847,142.84,142.79,17.5783048]
[1768549778971,4.95177429,142.83,142.79,17.5783048]
[1768549779270,1.59888847,142.84,142.79,17.5783048]
[1768549779470,4.94532443,142.83,142.79,17.5783048]
[1768549779666,1.59888847,142.84,142.79,17.5783048]
[1768549779862,4.94532443,142.83,142.79,17.5783048]
[1768549780065,1.59888847,142.84,142.79,17.5783048]
[1768549780267,4.94532443,142.83,142.79,17.5783048]
[1768549780568,1.59888847,142.84,142.79,17.5783048]
[1768549780768,4.94522899,142.83,142.79,17.5783048]
[1768549780969,1.59888847,142.84,142.79,17.5783048]
[1768549781270,4.94522899,142.83,142.79,17.5783048]
[1768549781462,1.59888847,142.84,142.79,17.5783048]
[1768549781665,4.94551322,142.83,142.79,17.5783048]
[1768549781969,1.59888847,142.84,142.79,23.8833048]
[1768549782167,4.94550305,142.83,142.79,23.8833048]
[1768549782368,1.59888847,142.84,142.79,23.8833048]
[1768549782670,4.94599189,142.83,142.79,23.8833048]
[1768549782974,20.11345421,142.87,142.81,17.5783048]
[1768549783174,1.59888847,142.85,142.81,17.5783048]
[1768549784171,18.51456574,142.86,142.81,17.5783048]
[1768549784474,6.54450375,142.85,142.81,17.5783048]
[1768549784673,1.59888847,142.85,142.81,17.5783048]
[1768549785370,18.51456574,142.86,142.81,17.5783048]
[1768549785371,20.11345421,142.86,142.81,17.5783048]
[1768549787881,18.51456574,142.86,142.81,17.5783048]
[1768549791083,1.59888847,142.87,142.81,17.5783048]
[1768549791680,19.18982806,142.87,142.81,17.5783048]
[1768549794782,17.59093959,142.89,142.83,17.32558149]
[1768549794978,10.10073851,142.88,142.83,17.32558149]
[1768549795180,19.18982806,142.89,142.83,17.32558149]
[1768549795378,10.10047309,142.88,142.83,17.32558149]
[1768549795575,19.18982806,142.89,142.83,17.32558149]
[1768549795778,10.10014049,142.88,142.83,17.32558149]
[1768549795979,19.18982806,142.89,142.83,17.32558149]
[1768549796182,10.10034025,142.88,142.83,17.32558149]
[1768549796377,19.18982806,142.89,142.83,17.32558149]
[1768549796686,10.09993887,142.88,142.83,17.32558149]
[1768549796885,19.18982806,142.89,142.84,17.32558149]
[1768549797082,10.10015767,142.88,142.84,17.32558149]
[1768549797282,19.18982806,142.89,142.84,17.32558149]
[1768549797481,10.09962447,142.88,142.84,17.32558149]
[1768549797681,19.18982806,142.89,142.84,17.32558149]
[1768549797887,10.09962447,142.88,142.84,17.32558149]
[1768549798078,19.18982806,142.89,142.84,17.32558149]
[1768549798278,10.09962447,142.88,142.84,17.32558149]
[1768549798483,19.18982806,142.89,142.84,17.32558149]
[1768549798684,10.09934708,142.88,142.84,17.32558149]
[1768549798883,19.18982806,142.89,142.84,17.32558149]
[1768549799183,10.09934708,142.88,142.84,17.32558149]
[1768549799382,19.18982806,142.89,142.84,17.32558149]
[1768549799582,10.09928891,142.88,142.84,17.32558149]
[1768549799783,19.18982806,142.89,142.84,17.32558149]
[1768549799978,10.09931965,142.88,142.84,17.32558149]
[1768549800180,19.18982806,142.89,142.84,17.32558149]
[1768549800488,10.09988047,142.88,142.84,17.32558149]
[1768549800685,19.18982806,142.89,142.84,17.32558149]
[1768549800989,19.18982806,142.91,142.84,17.32558149]
[1768549801288,10.10042538,142.9,142.84,17.32558149]
[1768549801483,10.10042538,142.89,142.84,17.32558149]
[1768549801684,19.18982806,142.91,142.84,17.32558149]
[1768549801891,27.69039395,142.9,142.84,17.32558149]
[1768549802093,10.09945436,142.89,142.84,17.32558149]
[1768549802291,17.59093959,142.9,142.84,17.32558149]
[1768549807090,1.59888847,142.91,142.84,17.32558149]
[1768549807293,19.18982806,142.91,142.84,17.32558149]
[1768549810493,17.59093959,142.9,142.84,17.32558149]
[1768549814990,19.18982806,142.87,142.82,17.32558149]
[1768549817289,19.18907346,142.87,142.82,17.32558149]
[1768549825999,1.59813387,142.85,142.8,16.70378946]
[1768549826190,19.44158063,142.85,142.8,16.70378946]
[1768549830306,1.59813387,142.85,142.8,16.70378946]
[1768549830603,19.12998847,142.85,142.78,17.72516522]
[1768549834227,25.43258847,142.85,142.78,17.72516522]
[1768549834411,17.5318546,142.84,142.78,17.72516522]
[1768549836122,1.59813387,142.83,142.78,17.72516522]
[1768549837020,23.8349546,142.84,142.78,17.72516522]
[1768549837320,1.59813387,142.83,142.78,17.72516522]
[1768549837921,25.43308847,142.84,142.78,17.72516522]
[1768549839121,6.3031,142.84,142.78,17.72516522]
[1768549845927,23.8349546,142.84,142.78,17.72516522]
[1768549858336,6.3034,142.83,142.78,17.72516522]
[1768549858834,24.12837018,142.83,142.78,17.72516522]
[1768549860940,25.72650405,142.83,142.78,17.72516522]
[1768549861232,19.42310405,142.81,142.74,17.20464216]
[1768549861635,24.12977018,142.8,142.74,17.20464216]
[1768549863038,1.59813387,142.79,142.74,17.20464216]
[1768549864449,25.72790405,142.8,142.74,17.20464216]
[1768549870147,19.42310405,142.8,142.74,17.20464216]
[1768549879355,1.59977217,142.79,142.74,17.20464216]
[1768549881457,1.59977217,142.79,142.74,23.51194216]
[1768549886060,19.42474235,142.8,142.75,6.3068]
[1768549888864,19.42474235,142.8,142.74,17.20464216]
[1768549890662,1.59977217,142.78,142.74,17.20464216]
[1768549891063,18.77567672,142.78,142.72,16.35811155]
[1768549891263,18.77567672,142.78,142.69,19.0]
[1768549891264,18.77567672,142.78,142.7,16.35811155]
[1768549892764,18.77567672,142.78,142.71,16.35811155]
[1768549893070,18.77567672,142.76,142.71,16.35811155]
[1768549901579,6.305,142.8,142.71,16.35811155]
[1768549901883,17.17590455,142.78,142.71,16.35811155]
[1768549902481,17.17590455,142.78,142.72,16.35811155]
[1768549906884,17.17590455,142.78,142.72,22.66621155]
[1768549912079,17.17590455,142.78,142.73,22.87710913]
[1768549930591,1.59977217,142.81,142.74,6.3073]
[1768549930794,8.442e-05,142.8,142.75,16.56960913]
[1768549930994,16.31830908,142.82,142.75,16.56960913]
[1768549931799,16.31830908,142.82,142.77,6.3058]
[1768549937802,21.03,142.87,142.78,16.56960913]
[1768549937803,16.31830908,142.84,142.78,16.56960913]
[1768549938898,16.31830908,142.84,142.79,6.305]
[1768549972928,16.31830908,142.84,142.78,16.56960913]
[1768549973831,16.31830908,142.84,142.78,22.87510913]
[1768549975129,10.06970061,142.83,142.78,22.87510913]
[1768549975428,16.31830908,142.84,142.78,22.87510913]
[1768549975622,10.06970061,142.83,142.78,22.87510913]
[1768549975822,16.31830908,142.84,142.78,22.87510913]
[1768549976017,10.06970179,142.83,142.78,22.87510913]
[1768549976229,16.31830908,142.84,142.78,22.87510913]
[1768549976529,10.07027924,142.83,142.78,22.87510913]
[1768549976725,16.31830908,142.84,142.78,22.87510913]
[1768549976931,10.0702931,142.83,142.78,22.87510913]
[1768549977130,16.31830908,142.84,142.78,22.87510913]
[1768549977331,10.07091018,142.83,142.78,22.87510913]
[1768549977632,16.31830908,142.84,142.78,22.87510913]
[1768549978129,4.9163807,142.83,142.78,22.87510913]
[1768549978332,16.31830908,142.84,142.78,22.87510913]
[1768549978534,4.9163807,142.83,142.78,22.87510913]
[1768549978831,16.31830908,142.84,142.78,22.87510913]
[1768549979020,4.9163807,142.83,142.78,22.87510913]
[1768549979222,16.31830908,142.84,142.78,22.87510913]
[1768549979419,7.90085022,142.86,142.78,22.87510913]
[1768549979420,15.75082656,142.86,142.79,16.72906184]
[1768549979634,10.07280078,142.85,142.8,16.72906184]
[1768549979828,10.07280078,142.84,142.8,16.72906184]
[1768549980028,15.75082656,142.86,142.8,16.72906184]
[1768549980234,10.07309983,142.85,142.8,16.72906184]
[1768549980534,10.07309983,142.84,142.8,16.72906184]
[1768549980733,15.75082656,142.86,142.8,16.72906184]
[1768549980929,10.07479855,142.85,142.8,16.72906184]
[1768549981129,10.07479855,142.84,142.8,16.72906184]
[1768549981333,15.75082656,142.86,142.8,16.72906184]
[1768549981533,10.07570363,142.85,142.8,16.72906184]
[1768549981733,10.07570363,142.84,142.8,16.72906184]
[1768549981934,15.75082656,142.86,142.8,16.72906184]
[1768549982233,10.07567923,142.85,142.8,16.72906184]
[1768549982435,10.07567923,142.84,142.8,16.72906184]
[1768549982734,15.75082656,142.86,142.8,16.72906184]
[1768549982935,10.07694301,142.85,142.8,16.72906184]
[1768549983134,10.07694301,142.84,142.8,16.72906184]
[1768549983331,15.75082656,142.86,142.8,16.72906184]
[1768549983527,10.07711974,142.85,142.8,16.72906184]
[1768549983726,10.07711974,142.84,142.8,16.72906184]
[1768549983931,15.75082656,142.86,142.8,16.72906184]
[1768549984231,10.0765141,142.85,142.8,16.72906184]
[1768549984426,10.0765141,142.84,142.8,16.72906184]
[1768549984726,15.75082656,142.86,142.8,16.72906184]
[1768549984928,10.07640625,142.85,142.8,16.72906184]
[1768549985225,10.07640625,142.84,142.8,16.72906184]
[1768549985536,15.75082656,142.86,142.8,16.72906184]
[1768549985732,10.07612435,142.85,142.8,16.72906184]
[1768549985930,10.07612435,142.84,142.8,16.72906184]
[1768549986133,15.75082656,142.86,142.8,16.72906184]
[1768549986432,10.07597287,142.85,142.8,16.72906184]
[1768549986630,10.07597287,142.84,142.8,16.72906184]
[1768549986833,15.75082656,142.86,142.8,16.72906184]
[1768549987035,10.07597284,142.85,142.8,16.72906184]
[1768549987229,10.07597284,142.84,142.8,16.72906184]
[1768549987430,15.75082656,142.86,142.8,16.72906184]
[1768549987630,10.07567515,142.85,142.8,16.72906184]
[1768549987833,10.07567515,142.84,142.8,16.72906184]
[1768549988033,15.75082656,142.86,142.8,16.72906184]
[1768549988332,10.07556867,142.85,142.8,16.72906184]
[1768549988532,10.07556867,142.84,142.8,16.72906184]
[1768549988732,15.75082656,142.86,142.8,16.72906184]
[1768549988934,10.07488345,142.85,142.8,16.72906184]
[1768549989133,10.07488345,142.84,142.8,16.72906184]
[1768549989329,15.75082656,142.86,142.8,16.72906184]
[1768549989530,10.07042068,142.85,142.8,16.72906184]
[1768549989834,10.07042068,142.84,142.8,16.72906184]
[1768549990036,15.75082656,142.86,142.8,16.72906184]
[1768549990241,10.05869989,142.85,142.8,16.72906184]
[1768549990430,10.05869989,142.84,142.8,16.72906184]
[1768549990726,15.75082656,142.86,142.8,16.72906184]
[1768549990929,10.05859819,142.85,142.8,16.72906184]
[1768549991132,10.05859819,142.84,142.8,16.72906184]
[1768549991331,15.75082656,142.84,142.79,6.3048]
[1768549992140,15.75082656,142.84,142.79,23.03386184]
[1768549996842,15.75082656,142.84,142.8,6.3046]
[1768550006442,17.94277913,142.86,142.8,22.15737069]
[1768550006648,10.1274335,142.85,142.8,22.15737069]
[1768550006844,10.1274335,142.84,142.8,22.15737069]
[1768550007045,16.34446487,142.86,142.8,22.15737069]
[1768550007245,10.12738278,142.85,142.8,22.15737069]
[1768550007451,4.97465769,142.84,142.8,22.15737069]
[1768550007651,16.34446487,142.86,142.8,22.15737069]
[1768550007842,10.12739617,142.85,142.8,22.15737069]
[1768550008048,10.12734594,142.84,142.8,22.15737069]
[1768550008242,16.34446487,142.86,142.8,22.15737069]
[1768550008442,26.82850763,142.85,142.8,22.15737069]
[1768550008643,10.12734892,142.84,142.8,22.15737069]
[1768550008848,16.70115871,142.85,142.8,22.15737069]
[1768550009047,4.97460632,142.84,142.8,22.15737069]
[1768550009246,16.70115871,142.85,142.8,22.15737069]
[1768550009548,10.12753321,142.84,142.8,22.15737069]
[1768550009747,16.70115871,142.85,142.8,22.15737069]
[1768550009947,10.12753321,142.84,142.8,22.15737069]
[1768550010247,16.70115871,142.85,142.8,22.15737069]
[1768550010440,10.12733142,142.84,142.8,22.15737069]
[1768550010639,16.70115871,142.85,142.8,22.15737069]
[1768550010841,10.19677167,142.84,142.8,22.15737069]
[1768550011040,16.70115871,142.85,142.8,22.15737069]
[1768550011237,10.19674376,142.84,142.8,22.15737069]
[1768550011537,16.70115871,142.85,142.8,22.15737069]
[1768550011741,10.19687403,142.84,142.8,22.15737069]
[1768550011945,16.70115871,142.85,142.8,22.15737069]
[1768550012142,10.19660637,142.84,142.8,22.15737069]
[1768550012338,16.70115871,142.85,142.8,22.15737069]
[1768550012538,10.19702826,142.84,142.8,22.15737069]
[1768550012739,16.70115871,142.85,142.8,22.15737069]
[1768550012942,10.19702826,142.84,142.8,22.15737069]
[1768550013144,16.70115871,142.85,142.8,22.15737069]
[1768550013343,10.19722291,142.84,142.8,22.15737069]
[1768550013543,16.70115871,142.85,142.8,22.15737069]
[1768550013739,10.19722291,142.84,142.8,22.15737069]
[1768550013950,16.70115871,142.85,142.8,22.15737069]
[1768550014151,10.19722291,142.84,142.8,22.15737069]
[1768550014352,5.04431559,142.83,142.8,22.15737069]
[1768550014552,16.70115871,142.85,142.8,22.15737069]
[1768550014752,10.19746053,142.84,142.8,22.15737069]
[1768550014948,5.04443206,142.83,142.8,6.3046]
[1768550015148,16.70115871,142.85,142.8,6.3046]
[1768550015352,10.19774447,142.84,142.8,6.3046]
[1768550015553,5.04457156,142.83,142.8,6.3046]
[1768550015747,16.70115871,142.85,142.8,6.3046]
[1768550015946,26.89831843,142.84,142.8,6.3046]
[1768550016154,5.04411536,142.83,142.8,6.3046]
[1768550016347,16.70115871,142.84,142.8,6.3046]
[1768550016547,5.04430454,142.83,142.8,6.3046]
[1768550016748,16.70115871,142.84,142.8,6.3046]
[1768550017048,5.04430454,142.83,142.8,6.3046]
[1768550017244,16.70115871,142.84,142.8,6.3046]
[1768550017547,5.04449914,142.83,142.8,6.3046]
[1768550017744,16.70115871,142.84,142.8,6.3046]
[1768550017949,5.04449914,142.83,142.8,6.3046]
[1768550018149,16.70115871,142.84,142.8,6.3046]
[1768550018353,5.044694,142.83,142.8,6.3046]
[1768550018550,16.70115871,142.84,142.8,6.3046]
[1768550018748,5.044694,142.83,142.8,6.3046]
[1768550019051,16.70115871,142.84,142.8,6.3046]
[1768550019251,5.044694,142.83,142.78,22.82220987]
[1768550019453,16.70115871,142.84,142.78,22.82220987]
[1768550019654,1.59831426,142.85,142.78,22.82220987]
[1768550019655,26.887909,142.83,142.78,22.82220987]
[1768550019949,5.03451771,142.82,142.78,22.82220987]
[1768550022763,16.70115871,142.83,142.78,22.82220987]
[1768550051587,15.63077737,142.88,142.8,16.19585867]
[1768550051778,10.19812456,142.87,142.8,16.19585867]
[1768550051979,10.19812456,142.86,142.8,16.19585867]
[1768550052287,5.03200616,142.85,142.8,16.19585867]
[1768550052485,15.63077737,142.88,142.8,16.19585867]
[1768550052677,10.19662001,142.87,142.8,16.19585867]
[1768550052983,10.19662001,142.86,142.81,22.49995867]
[1768550053185,5.03130854,142.85,142.81,22.49995867]
[1768550053380,15.63077737,142.88,142.81,22.49995867]
[1768550053682,10.19402369,142.87,142.81,22.49995867]
[1768550053880,10.19402369,142.86,142.81,22.49995867]
[1768550054082,15.63077737,142.88,142.81,22.49995867]
[1768550054278,10.19429594,142.87,142.81,22.49995867]
[1768550054478,10.19429594,142.86,142.81,22.49995867]
[1768550054679,15.63077737,142.88,142.81,22.49995867]
[1768550054884,10.19244646,142.87,142.81,22.49995867]
[1768550055182,5.02921867,142.86,142.81,22.49995867]
[1768550055382,15.63077737,142.88,142.81,22.49995867]
[1768550055583,10.19083787,142.87,142.81,22.49995867]
[1768550055784,5.02842484,142.86,142.81,22.49995867]
[1768550055985,17.22909163,142.88,142.81,22.49995867]
[1768550056285,10.19083787,142.87,142.81,22.49995867]
[1768550056485,5.02842484,142.86,142.81,22.49995867]
[1768550056783,17.22909163,142.88,142.81,22.49995867]
[1768550056984,10.18916003,142.87,142.81,22.49995867]
[1768550057180,5.02751321,142.86,142.81,22.49995867]
[1768550057381,17.22909163,142.88,142.81,22.49995867]
[1768550057583,10.18790664,142.87,142.81,22.49995867]
[1768550057777,5.02689428,142.86,142.81,22.49995867]
[1768550057984,17.22909163,142.88,142.81,22.49995867]
[1768550058184,10.18790658,142.87,142.81,22.49995867]
[1768550058484,5.02688171,142.86,142.81,22.49995867]
[1768550058685,17.22909163,142.88,142.81,22.49995867]
[1768550058884,10.18670033,142.87,142.81,22.49995867]
[1768550059082,5.02628438,142.86,142.81,22.49995867]
[1768550059284,17.22909163,142.88,142.81,22.49995867]
[1768550059592,10.18567797,142.87,142.81,22.49995867]
[1768550059781,5.02579193,142.86,142.81,22.49995867]
[1768550059984,17.22909163,142.88,142.81,22.49995867]
[1768550060283,10.18562868,142.87,142.82,16.19585867]
[1768550060481,5.02576761,142.86,142.82,16.19585867]
[1768550060689,1.59831426,142.87,142.82,16.19585867]
[1768550060981,5.02528805,142.86,142.82,16.19585867]
[1768550061182,17.22909163,142.87,142.82,16.19585867]
[1768550061383,5.0251641,142.86,142.82,16.19585867]
[1768550061682,15.63077737,142.87,142.82,16.19585867]
[1768550061982,5.02479767,142.86,142.82,16.19585867]
[1768550062182,15.63077737,142.87,142.82,16.19585867]
[1768550062388,5.02466814,142.86,142.82,16.19585867]
[1768550062590,15.63077737,142.87,142.82,16.19585867]
[1768550062794,5.02435051,142.86,142.82,16.19585867]
[1768550063089,15.63077737,142.87,142.82,16.19585867]
[1768550063286,5.02435051,142.86,142.82,16.19585867]
[1768550063590,15.63077737,142.87,142.82,16.19585867]
[1768550063790,5.02394367,142.86,142.82,16.19585867]
[1768550063991,15.63077737,142.87,142.82,16.19585867]
[1768550064193,5.02415862,142.86,142.82,16.19585867]
[1768550064490,15.63077737,142.87,142.82,16.19585867]
[1768550064691,5.02378509,142.86,142.82,16.19585867]
[1768550064890,15.63077737,142.87,142.82,16.19585867]
[1768550070998,1.21880746,142.91,142.85,6.3025]
[1768550071193,5.02240749,142.9,142.85,6.3025]
[1768550071395,1.59784163,142.9,142.85,22.6189467]
[1768550071696,1.59784163,142.9,142.85,16.3164467]
[1768550071898,1.59784163,142.86,142.79,16.3164467]
[1768550073798,1.59784163,142.86,142.81,22.6205467]
[1768550087613,1.59784163,142.86,142.82,16.3164467]
[1768550087809,18.07487819,142.88,142.82,16.3164467]
[1768550088009,4.99242633,142.87,142.82,16.3164467]
[1768550088209,18.07487819,142.88,142.82,16.3164467]
[1768550088416,4.99288541,142.87,142.82,16.3164467]
[1768550088717,18.07487819,142.88,142.82,16.3164467]
[1768550089014,4.99288543,142.87,142.82,22.6201467]
[1768550089216,18.07487819,142.88,142.82,22.6201467]
[1768550089417,4.99318827,142.87,142.83,16.3164467]
[1768550089618,16.47703656,142.88,142.83,16.3164467]
[1768550089817,4.993198,142.87,142.83,16.3164467]
[1768550090017,16.47703656,142.88,142.83,16.3164467]
[1768550090219,4.993198,142.87,142.83,16.3164467]
[1768550090415,16.47703656,142.88,142.83,16.3164467]
[1768550090619,1.59784163,142.89,142.83,22.6195467]
[1768550090812,10.14680395,142.88,142.83,22.6195467]
[1768550091012,1.59784163,142.89,142.83,22.6195467]
[1768550091317,10.14734488,142.88,142.83,22.6195467]
[1768550091522,16.37897057,142.92,142.85,16.30832606]
[1768550091826,21.53353956,142.91,142.85,16.30832606]
[1768550092021,16.37897057,142.91,142.85,16.30832606]
[1768550093120,17.9768122,142.9,142.85,16.30832606]
[1768550095925,1.59784163,142.9,142.85,22.61052606]
[1768550096115,17.9768122,142.92,142.86,16.30832606]
[1768550096314,21.53220358,142.91,142.86,16.30832606]
[1768550096511,16.37897057,142.91,142.86,16.30832606]
[1768550100017,16.37897057,142.91,142.86,22.61022606]
[1768550100226,16.37897057,142.91,142.86,16.30832606]
[1768550100523,16.37897057,142.93,142.86,16.30832606]
[1768550101416,16.37897057,142.95,142.89,16.30832606]
[1768550103512,17.9768122,142.95,142.89,16.30832606]
[1768550104123,16.37897057,142.95,142.89,16.30832606]
[1768550104323,17.9768122,142.95,142.89,16.30832606]
[1768550104520,17.9768122,142.95,142.88,6.3011]
[1768550105928,16.37897057,142.94,142.87,16.30832606]
[1768550106829,16.37897057,142.94,142.88,16.30832606]
[1768550119836,22.67757057,142.94,142.88,16.30832606]
[1768550120036,16.37897057,142.93,142.88,16.30832606]
[1768550120832,16.37897057,142.93,142.86,6.3019]
[1768550121138,6.2986,142.94,142.84,16.30832606]
[1768550121139,17.9768122,142.91,142.84,16.30832606]
[1768550121436,17.8683297,142.9,142.84,16.30832606]
[1768550122235,17.8683297,142.9,142.82,16.31074818]
[1768550122538,17.8683297,142.88,142.82,16.31074818]
[1768550122738,16.27093883,142.88,142.82,16.31074818]
[1768550122938,22.57183883,142.89,142.82,16.31074818]
[1768550123128,16.27093883,142.89,142.82,16.31074818]
[1768550123334,16.27093883,142.89,142.83,16.31074818]
[1768550128247,1.59739087,142.9,142.83,16.31074818]
[1768550130244,18.29104106,142.91,142.83,16.31074818]
[1768550130948,24.59094106,142.91,142.83,16.31074818]
[1768550132642,16.69365019,142.91,142.84,16.45711561]
[1768550134648,18.29104106,142.9,142.84,16.45711561]
[1768550149173,24.59134106,142.9,142.84,16.45711561]
[1768550150069,18.29104106,142.9,142.84,16.45711561]
[1768550151871,16.69365019,142.9,142.85,16.56797859]
[1768550154772,15.89503157,142.92,142.86,16.56797859]
[1768550159679,15.89503157,142.92,142.87,16.56797859]
[1768550159973,1.59739087,142.93,142.87,16.56797859]
[1768550160174,15.89503157,142.94,142.87,16.56797859]
[1768550160378,5.14799132,142.93,142.87,16.56797859]
[1768550160575,15.89503157,142.94,142.87,16.56797859]
[1768550160872,5.14897948,142.93,142.88,16.56797859]
[1768550161074,15.89503157,142.94,142.88,16.56797859]
[1768550164379,5.14966793,142.93,142.88,16.56797859]
[1768550164574,15.89503157,142.94,142.88,16.56797859]
[1768550164978,22.64175365,142.93,142.88,16.56797859]
[1768550165180,17.49242244,142.93,142.86,16.56797859]
[1768550165479,1.59739087,142.91,142.86,16.56797859]
[1768550166780,1.59739087,142.91,142.86,22.86987859]
[1768550167175,15.89503157,142.92,142.86,22.86987859]
[1768550167383,1.59739087,142.91,142.86,22.86987859]
[1768550168879,15.89503157,142.9,142.84,22.87057859]
[1768550172586,17.49242244,142.93,142.87,6.3015]
[1768550172789,25.91971667,142.92,142.86,16.56797859]
[1768550172982,15.89503157,142.92,142.86,16.56797859]
[1768550176786,15.89503157,142.95,142.86,16.56797859]
[1768550177787,15.89503157,142.95,142.89,6.3005]
[1768550180491,10.01935191,142.94,142.89,6.3005]
[1768550180690,15.89503157,142.95,142.89,6.3005]
[1768550180893,17.49242244,142.97,142.91,16.56797859]
[1768550181290,17.49242244,142.97,142.89,16.4646154]
[1768550182793,17.49242244,142.97,142.89,22.7652154]
[1768550182994,17.49242244,142.97,142.89,16.4646154]
[1768550183295,17.14690976,142.96,142.89,16.4646154]
[1768550184892,15.55092614,142.99,142.91,16.4646154]
[1768550185198,25.60728615,142.98,142.91,16.4646154]
[1768550185396,15.55092614,142.98,142.91,16.4646154]
[1768550185599,15.55092614,142.96,142.88,16.4646154]
[1768550188900,21.84882614,142.96,142.88,16.4646154]
[1768550189100,15.90516092,142.98,142.9,16.72220772]
[1768550194406,22.20206092,142.98,142.9,16.72220772]
[1768550194600,15.90516092,142.97,142.9,16.72220772]
[1768550196908,22.20256092,142.97,142.9,16.72220772]
[1768550197408,15.90516092,142.95,142.88,16.72220772]
[1768550198813,6.2986,142.94,142.88,16.72220772]
[1768550200310,6.299,142.93,142.88,16.72220772]
[1768550201314,6.2995,142.92,142.88,6.14600772]
[1768550202515,6.2995,142.92,142.88,7.72e-06]
[1768550204215,6.2999,142.91,142.88,7.72e-06]
[1768550205015,6.2999,142.91,142.83,12.41721705]
[1768550205215,6.2999,142.91,142.84,12.41693542]
[1768550206113,97.9746,142.95,142.84,12.41693542]
[1768550206114,17.50114454,142.9,142.84,12.41693542]
[1768550207918,6.3013,142.88,142.84,12.41693542]
[1768550210821,6.3013,142.88,142.84,1.83293542]
[1768550211122,7.89728362,142.88,142.84,1.83293542]
[1768550214325,22.20576092,142.9,142.84,1.83293542]
[1768550214525,1.59598362,142.89,142.84,1.83293542]
[1768550214926,7.89678362,142.89,142.84,1.83293542]
[1768550217929,1.59598362,142.89,142.84,1.83293542]
[1768550220640,17.13149818,142.92,142.84,1.83293542]
[1768550221934,23.43099818,142.92,142.84,1.83293542]
[1768550222539,15.53551456,142.91,142.84,1.83293542]
[1768550222935,21.83551456,142.91,142.84,1.83293542]
[1768550223130,15.53551456,142.9,142.84,1.83293542]
[1768550226142,17.13149818,142.9,142.84,1.83293542]
[1768550226940,23.43189818,142.9,142.84,1.83293542]
[1768550234353,17.13149818,142.9,142.84,1.83293542]
[1768550234646,15.53551456,142.9,142.84,1.83293542]
[1768550240048,17.13149818,142.9,142.84,1.83293542]
[1768550243350,15.43755648,142.89,142.81,1.81896163]
[1768550253870,15.43755648,142.89,142.82,2.50048859]
[1768550256976,15.43755648,142.89,142.83,2.67206405]
[1768550257277,21.02,142.98,142.83,2.67206405]
[1768550257570,1.59704153,142.91,142.83,2.67206405]
[1768550257976,6.2982,142.95,142.83,8.97526405]
[1768550258166,1.59704153,142.91,142.83,8.97526405]
[1768550259276,16.87962713,142.9,142.83,8.97526405]
[1768550259870,16.87962713,142.92,142.85,17.18628024]
[1768550260770,16.87962713,142.92,142.86,6.3019]
[1768550263174,16.87962713,142.92,142.87,17.18628024]
[1768550263769,16.87962713,142.92,142.87,23.48778024]
[1768550265878,16.87962713,142.92,142.87,6.3015]
[1768550267176,16.87962713,142.94,142.88,23.48738024]
[1768550268076,16.87962713,142.94,142.89,6.3006]
[1768550268571,16.87962713,142.94,142.9,6.3001]
[1768550271086,2.713e-05,142.94,142.9,6.3001]
[1768550272878,2.713e-05,142.94,142.91,6.2995]
[1768550273983,2.713e-05,142.94,142.92,6.2993]
[1768550274284,17.27611602,143.0,142.9,98.0035]
[1768550274484,1.602e-05,142.96,142.9,98.0035]
[1768550274881,5.755e-05,142.97,142.9,98.0035]
[1768550275079,5.755e-05,142.97,142.93,6.2988]
[1768550275274,5.755e-05,142.97,142.91,97.9975]
[1768550275676,5.755e-05,142.97,142.94,6.2984]
[1768550276882,1.4,142.98,142.94,6.2984]
[1768550277084,4.153e-05,142.98,142.94,6.2984]
[1768550278883,0.1043978,142.97,142.9,23.62059897]
[1768550280692,0.1043978,142.97,142.91,23.62039897]
[1768550280883,0.1043978,142.97,142.91,17.32069897]
[1768550288594,1.56036005,143.0,142.91,17.32069897]
[1768550289789,1.56036005,143.0,142.91,18.9177405]
[1768550295203,1.56036005,143.0,142.91,25.2173405]
[1768550295802,1.56036005,143.0,142.92,17.32069897]